fUSD/lending_fUSD_20250629
["ID","MTS","AMOUNT","RATE_DAILY","PERIOD"]
[368471923,1751188239131,-1437.3,0.00027397,3]
[368471925,1751188239140,-490.0,0.00027397,3]
[368471927,1751188239150,-490.0,0.00027397,3]
[368471929,1751188239160,-490.0,0.00027397,3]
[368471931,1751188239169,-490.0,0.00027397,3]
[368471933,1751188239178,-544.51,0.00027397,3]
[368471935,1751188239188,-972.66,0.00027397,3]
[368471937,1751188239197,-490.0,0.00027397,3]
[368471939,1751188239206,-499.69498086,0.00027397,3]
[368471941,1751188239216,-438.8881471,0.00027397,3]
[368471943,1751188239225,-672.77,0.00027397,3]
[368471945,1751188239234,-490.0,0.00027397,3]
[368471947,1751188239243,-490.0,0.00027397,3]
[368471950,1751188239253,-490.0,0.00027397,3]
[368471952,1751188239262,-490.0,0.00027397,3]
[368471954,1751188239272,-494.89589127,0.00027397,3]
[368471955,1751188239281,-490.0,0.00027397,3]
[368471957,1751188239290,-2120.0,0.00027397,3]
[368471959,1751188239299,-2251.9,0.00027397,3]
[368471961,1751188239311,-490.0,0.00027397,3]
[368471962,1751188239320,-1102.81,0.00027397,3]
[368471964,1751188239330,-490.0,0.00027397,3]
[368471966,1751188239338,-490.0,0.00027397,3]
[368471968,1751188239348,-490.0,0.00027397,3]
[368471970,1751188239357,-834.53,0.00027397,3]
[368471972,1751188239367,-595.47523367,0.00027397,3]
[368471974,1751188239376,-1292.78,0.00027397,3]
[368471976,1751188239386,-490.0,0.00027397,3]
[368471978,1751188239395,-635.5,0.00027397,3]
[368471980,1751188239405,-500.0,0.00027397,3]
[368471982,1751188239414,-490.0,0.00027397,3]
[368471984,1751188239424,-548.02,0.00027397,3]
[368471986,1751188239433,-490.0,0.00027397,3]
[368471988,1751188239442,-490.0,0.00027397,3]
[368471990,1751188239451,-490.0,0.00027397,3]
[368471992,1751188239460,-1027.06,0.00027397,3]
[368471994,1751188239471,-1999.09,0.00027397,3]
[368471996,1751188239480,-490.0,0.00027397,3]
[368471998,1751188239490,-2621.78,0.00027397,3]
[368472000,1751188239499,-490.0,0.00027397,3]
[368472002,1751188239509,-490.0,0.00027397,3]
[368472004,1751188239519,-594.01,0.00027397,3]
[368472006,1751188239528,-490.0,0.00027397,3]
[368472008,1751188239537,-793.58,0.00027397,3]
[368472010,1751188239548,-490.0,0.00027397,3]
[368472012,1751188239557,-490.0,0.00027397,3]
[368472014,1751188239567,-490.0,0.00027397,3]
[368472016,1751188239576,-2500.0,0.00027397,14]
[368472018,1751188239585,-561.03,0.00027397,3]
[368472020,1751188239594,-490.0,0.00027397,3]
[368472022,1751188239603,-584.66,0.00027397,3]
[368472024,1751188239612,-490.0,0.00027397,3]
[368472026,1751188239622,-490.0,0.00027397,3]
[368472028,1751188239631,-490.0,0.00027397,3]
[368472029,1751188239641,-797.77,0.00027397,3]
[368472031,1751188239651,-829.54,0.00027397,3]
[368472033,1751188239660,-490.0,0.00027397,3]
[368472034,1751188239669,-490.0,0.00027397,3]
[368472035,1751188239678,-490.0,0.00027397,3]
[368472036,1751188239686,-490.0,0.00027397,3]
[368472037,1751188239696,-681.88,0.00027397,3]
[368472038,1751188239705,-490.0,0.00027397,3]
[368472039,1751188239714,-490.0,0.00027397,3]
[368472040,1751188239724,-490.0,0.00027397,3]
[368472041,1751188239733,-490.0,0.00027397,3]
[368472042,1751188239742,-490.0,0.00027397,3]
[368472043,1751188239751,-490.0,0.00027397,3]
[368472044,1751188239760,-490.0,0.00027397,3]
[368472045,1751188239769,-653.98,0.00027397,3]
[368472046,1751188239777,-490.0,0.00027397,3]
[368472047,1751188239786,-490.0,0.00027397,3]
[368472048,1751188239795,-800.28,0.00027397,3]
[368472049,1751188239804,-490.0,0.00027397,3]
[368472050,1751188239814,-490.0,0.00027397,3]
[368472051,1751188239822,-490.0,0.00027397,3]
[368472052,1751188239831,-490.0,0.00027397,3]
[368472053,1751188239840,-490.0,0.00027397,3]
[368472054,1751188239850,-490.0,0.00027397,3]
[368472055,1751188239859,-846.51,0.00027397,3]
[368472056,1751188239868,-490.0,0.00027397,3]
[368472058,1751188239877,-490.0,0.00027397,3]
[368472060,1751188239887,-490.0,0.00027397,3]
[368472062,1751188239896,-490.0,0.00027397,3]
[368472064,1751188239905,-490.0,0.00027397,3]
[368472066,1751188239914,-490.0,0.00027397,3]
[368472068,1751188239923,-743.22,0.00027397,3]
[368472070,1751188239933,-490.0,0.00027397,3]
[368472072,1751188239943,-490.0,0.00027397,3]
[368472074,1751188239953,-1747.51,0.00027397,3]
[368472076,1751188239962,-490.0,0.00027397,3]
[368472078,1751188239971,-977.29,0.00027397,3]
[368472080,1751188239984,-568.403321,0.00027397,3]
[368472082,1751188239994,-490.0,0.00027397,3]
[368472084,1751188240004,-500.0,0.00027397,3]
[368472085,1751188240013,-490.0,0.00027397,3]
[368472087,1751188240022,-500.0,0.00027397,3]
[368472090,1751188240032,-490.0,0.00027397,3]
[368472091,1751188240041,-490.0,0.00027397,3]
[368472093,1751188240051,-490.0,0.00027397,3]
[368472095,1751188240060,-490.0,0.00027397,3]
[368472097,1751188240069,-608.07639784,0.00027397,3]
[368472099,1751188240078,-1159.33,0.00027397,3]
[368472101,1751188240088,-1663.83,0.00027397,3]
[368472103,1751188240097,-1691.24,0.00027397,3]
[368472105,1751188240106,-490.0,0.00027397,3]
[368472107,1751188240115,-1048.23,0.00027397,3]
[368472109,1751188240125,-490.0,0.00027397,3]
[368472111,1751188240134,-490.0,0.00027397,3]
[368472113,1751188240145,-493.16899547,0.00027397,3]
[368472115,1751188240155,-490.0,0.00027397,3]
[368472118,1751188240164,-490.0,0.00027397,3]
[368472120,1751188240173,-1059.07,0.00027397,3]
[368472122,1751188240183,-1824.19,0.00027397,3]
[368472124,1751188240192,-490.0,0.00027397,3]
[368472126,1751188240201,-490.0,0.00027397,3]
[368472128,1751188240211,-490.0,0.00027397,3]
[368472131,1751188240220,-490.0,0.00027397,3]
[368472133,1751188240229,-490.0,0.00027397,3]
[368472135,1751188240239,-588.0,0.00027397,3]
[368472137,1751188240248,-490.0,0.00027397,3]
[368472139,1751188240258,-1160.56,0.00027397,3]
[368472141,1751188240268,-490.0,0.00027397,3]
[368472143,1751188240277,-2214.34,0.00027397,3]
[368472145,1751188240286,-490.0,0.00027397,3]
[368472147,1751188240295,-490.0,0.00027397,3]
[368472149,1751188240309,-1125.86,0.00027397,3]
[368472151,1751188240318,-490.0,0.00027397,3]
[368472153,1751188240328,-490.0,0.00027397,3]
[368472155,1751188240337,-10.32496002,0.00027397,3]
[368472159,1751188240358,-479.67503998,0.00027397,3]
[368472161,1751188240367,-490.0,0.00027397,3]
[368472163,1751188240377,-491.26376242,0.00027397,3]
[368472165,1751188240387,-490.0,0.00027397,3]
[368472167,1751188240398,-490.0,0.00027397,3]
[368472169,1751188240407,-490.0,0.00027397,3]
[368472171,1751188240416,-490.0,0.00027397,3]
[368472173,1751188240425,-490.0,0.00027397,3]
[368472175,1751188240434,-834.36,0.00027397,3]
[368472177,1751188240444,-490.0,0.00027397,3]
[368472179,1751188240453,-535.46584948,0.00027397,3]
[368472181,1751188240462,-490.0,0.00027397,3]
[368472183,1751188240472,-490.0,0.00027397,3]
[368472185,1751188240481,-490.0,0.00027397,3]
[368472187,1751188240490,-1384.92,0.00027397,3]
[368472189,1751188240499,-490.0,0.00027397,3]
[368472191,1751188240508,-490.0,0.00027397,3]
[368472193,1751188240517,-2432.17,0.00027397,3]
[368472195,1751188240526,-490.0,0.00027397,3]
[368472197,1751188240535,-299.35015959,0.00027397,3]
[368472199,1751188240544,-1273.38,0.00027397,3]
[368472201,1751188240554,-490.0,0.00027397,3]
[368472203,1751188240563,-625.30627842,0.00027397,3]
[368472205,1751188240572,-545.9595856,0.00027397,3]
[368472207,1751188240581,-490.0,0.00027397,3]
[368472209,1751188240590,-751.69,0.00027397,3]
[368472211,1751188240599,-946.79,0.00027397,3]
[368472212,1751188240609,-1198.2,0.00027397,3]
[368472214,1751188240618,-490.0,0.00027397,3]
[368472216,1751188240628,-490.0,0.00027397,3]
[368472219,1751188240638,-1006.45,0.00027397,3]
[368472221,1751188240647,-1105.27,0.00027397,3]
[368472223,1751188240658,-490.0,0.00027397,3]
[368472225,1751188240667,-490.0,0.00027397,3]
[368472227,1751188240676,-490.0,0.00027397,3]
[368472229,1751188240685,-567.02,0.00027397,3]
[368472231,1751188240694,-2093.67,0.00027397,3]
[368472233,1751188240704,-662.01,0.00027397,3]
[368472235,1751188240713,-490.0,0.00027397,3]
[368472236,1751188240722,-490.0,0.00027397,3]
[368472238,1751188240732,-490.0,0.00027397,3]
[368472240,1751188240742,-490.0,0.00027397,3]
[368472242,1751188240752,-490.0,0.00027397,3]
[368472244,1751188240761,-490.0,0.00027397,3]
[368472246,1751188240770,-490.0,0.00027397,3]
[368472248,1751188240780,-526.53294224,0.00027397,3]
[368472250,1751188240790,-490.0,0.00027397,3]
[368472252,1751188240799,-1051.25,0.00027397,3]
[368472254,1751188240809,-655.43,0.00027397,3]
[368472256,1751188240818,-490.0,0.00027397,3]
[368472258,1751188240827,-490.0,0.00027397,3]
[368472260,1751188240837,-490.0,0.00027397,3]
[368472262,1751188240846,-1037.14246723,0.00027397,3]
[368472266,1751188240870,-445.5548604,0.00027397,3]
[368472287,1751188241486,-255.7585,0.00027397,2]
[368472288,1751188241524,-132.0281947,0.00027397,2]
[368472289,1751188241533,-190.94267237,0.00027397,3]
[368472290,1751188241542,-300.0390366,0.00027397,3]
[368472291,1751188241551,-414.99009618,0.00027397,3]
[368472292,1751188241563,-75.00990382,0.00027397,3]
[368472293,1751188241572,-335.83706812,0.00027397,3]
[368472294,1751188241691,-154.16293188,0.00027397,3]
[368472295,1751188241700,-490.0,0.00027397,3]
[368472296,1751188241709,-490.0,0.00027397,3]
[368472297,1751188241720,-490.0,0.00027397,3]
[368472298,1751188241729,-490.0,0.00027397,3]
[368472299,1751188241738,-1014.77,0.00027397,3]
[368472300,1751188241747,-711.61,0.00027397,3]
[368472301,1751188241756,-2067.34,0.00027397,3]
[368472302,1751188241765,-490.0,0.00027397,3]
[368472303,1751188241774,-490.0,0.00027397,3]
[368472304,1751188241783,-490.0,0.00027397,3]
[368472305,1751188241792,-490.0,0.00027397,3]
[368472306,1751188241801,-1083.91,0.00027397,3]
[368472307,1751188241810,-490.0,0.00027397,3]
[368472308,1751188241819,-490.0,0.00027397,3]
[368472309,1751188241828,-1122.74,0.00027397,3]
[368472310,1751188241838,-490.0,0.00027397,3]
[368472311,1751188241848,-1697.98,0.00027397,3]
[368472312,1751188241857,-1115.81,0.00027397,3]
[368472313,1751188241866,-490.0,0.00027397,3]
[368472314,1751188241875,-490.0,0.00027397,3]
[368472315,1751188241884,-1379.41040576,0.00027397,3]
[368472316,1751188241897,-869.98048793,0.00027397,3]
[368472317,1751188241908,-502.10910631,0.00027397,3]
[368472318,1751188241917,-490.0,0.00027397,3]
[368472319,1751188241929,-2188.15,0.00027397,3]
[368472320,1751188241939,-490.0,0.00027397,3]
[368472321,1751188241948,-1628.07,0.00027397,3]
[368472322,1751188241957,-490.0,0.00027397,3]
[368472323,1751188241966,-490.0,0.00027397,3]
[368472324,1751188241975,-97.75610445,0.00027397,3]
[368472325,1751188241987,-1659.58389555,0.00027397,3]
[368472326,1751188241996,-678.38,0.00027397,3]
[368472327,1751188242005,-490.0,0.00027397,3]
[368472328,1751188242014,-550.64,0.00027397,3]
[368472329,1751188242023,-490.0,0.00027397,3]
[368472330,1751188242032,-258.97811628,0.00027397,3]
[368472331,1751188242044,-231.02188372,0.00027397,3]
[368472332,1751188242053,-2538.07,0.00027397,3]
[368472333,1751188242062,-2296.08,0.00027397,3]
[368472334,1751188242071,-976.33,0.00027397,3]
[368472335,1751188242081,-490.0,0.00027397,3]
[368472336,1751188242090,-490.0,0.00027397,3]
[368472337,1751188242100,-349.72992605,0.00027397,3]
[368472338,1751188242109,-490.0,0.00027397,3]
[368472339,1751188242119,-490.0,0.00027397,3]
[368472340,1751188242128,-490.0,0.00027397,3]
[368472341,1751188242138,-151.73726435,0.00027397,3]
[368472342,1751188242148,-2122.16,0.00027397,3]
[368472343,1751188242158,-490.0,0.00027397,3]
[368472344,1751188242168,-789.47264291,0.00027397,3]
[368472345,1751188242518,-317.28181432,0.00027397,3]
[368472356,1751188246605,-141.76554277,0.00027397,3]
[368472357,1751188246616,-490.0,0.00027397,3]
[368472358,1751188246626,-658.77,0.00027397,3]
[368472359,1751188246635,-490.0,0.00027397,3]
[368472360,1751188246646,-1703.74,0.00027397,3]
[368472361,1751188246655,-490.0,0.00027397,3]
[368472362,1751188246664,-58.47630978,0.00027397,3]
[368472363,1751188246677,-431.52369022,0.00027397,3]
[368472364,1751188246687,-556.35,0.00027397,3]
[368472365,1751188246697,-2755.67,0.00027397,3]
[368472366,1751188246707,-490.0,0.00027397,3]
[368472367,1751188246716,-1014.12,0.00027397,3]
[368472368,1751188246726,-490.0,0.00027397,3]
[368472369,1751188246735,-931.2,0.00027397,3]
[368472370,1751188246744,-490.0,0.00027397,3]
[368472371,1751188246754,-764.23,0.00027397,3]
[368472372,1751188246763,-490.0,0.00027397,3]
[368472373,1751188246773,-490.0,0.00027397,3]
[368472375,1751188246782,-490.0,0.00027397,3]
[368472377,1751188246792,-657.39,0.00027397,3]
[368472378,1751188246801,-490.0,0.00027397,3]
[368472379,1751188246811,-669.9,0.00027397,3]
[368472380,1751188246820,-490.0,0.00027397,3]
[368472381,1751188246830,-490.0,0.00027397,3]
[368472382,1751188246839,-490.0,0.00027397,3]
[368472383,1751188246849,-552.41,0.00027397,3]
[368472384,1751188246859,-490.0,0.00027397,3]
[368472385,1751188246869,-490.0,0.00027397,3]
[368472386,1751188246879,-490.0,0.00027397,3]
[368472387,1751188246888,-1565.11,0.00027397,3]
[368472388,1751188246897,-490.0,0.00027397,3]
[368472389,1751188246907,-490.0,0.00027397,3]
[368472390,1751188246916,-490.0,0.00027397,3]
[368472391,1751188246926,-490.0,0.00027397,3]
[368472392,1751188246935,-490.0,0.00027397,3]
[368472393,1751188246945,-300.0,0.00027397,3]
[368472394,1751188246955,-490.0,0.00027397,3]
[368472395,1751188246964,-2070.85,0.00027397,3]
[368472396,1751188246973,-727.54,0.00027397,3]
[368472397,1751188246983,-490.0,0.00027397,3]
[368472398,1751188246992,-191.7255473,0.00027397,3]
[368472399,1751188247002,-1515.23,0.00027397,3]
[368472400,1751188247012,-490.0,0.00027397,3]
[368472401,1751188247022,-490.0,0.00027397,3]
[368472402,1751188247032,-1757.29,0.00027397,3]
[368472403,1751188247042,-490.0,0.00027397,3]
[368472404,1751188247052,-490.0,0.00027397,3]
[368472405,1751188247062,-1313.69,0.00027397,3]
[368472406,1751188247072,-490.0,0.00027397,3]
[368472407,1751188247082,-507.1,0.00027397,3]
[368472408,1751188247091,-490.0,0.00027397,3]
[368472409,1751188247101,-490.0,0.00027397,3]
[368472410,1751188247112,-490.0,0.00027397,3]
[368472411,1751188247121,-490.0,0.00027397,3]
[368472412,1751188247132,-490.0,0.00027397,3]
[368472413,1751188247142,-1429.87,0.00027397,3]
[368472414,1751188247152,-631.11,0.00027397,3]
[368472415,1751188247162,-1094.81,0.00027397,3]
[368472416,1751188247171,-490.0,0.00027397,3]
[368472417,1751188247180,-490.0,0.00027397,3]
[368472418,1751188247190,-1216.07,0.00027397,3]
[368472419,1751188247200,-1300.71,0.00027397,3]
[368472420,1751188247210,-776.08,0.00027397,3]
[368472421,1751188247219,-490.0,0.00027397,3]
[368472422,1751188247229,-502.76,0.00027397,3]
[368472423,1751188247238,-1836.19,0.00027397,3]
[368472424,1751188247248,-186.42222535,0.00027397,3]
[368472425,1751188247257,-2294.89,0.00027397,3]
[368472426,1751188247267,-490.0,0.00027397,3]
[368472427,1751188247277,-688.3,0.00027397,3]
[368472428,1751188247286,-490.0,0.00027397,3]
[368472429,1751188247296,-490.0,0.00027397,3]
[368472430,1751188247308,-490.0,0.00027397,3]
[368472431,1751188247318,-1765.49,0.00027397,3]
[368472432,1751188247327,-490.0,0.00027397,3]
[368472433,1751188247337,-490.0,0.00027397,3]
[368472434,1751188247347,-2418.77,0.00027397,3]
[368472435,1751188247356,-490.0,0.00027397,3]
[368472436,1751188247366,-490.0,0.00027397,2]
[368472437,1751188247376,-490.0,0.00027397,3]
[368472438,1751188247386,-490.0,0.00027397,3]
[368472439,1751188247396,-651.57,0.00027397,3]
[368472440,1751188247406,-2207.81,0.00027397,3]
[368472441,1751188247416,-876.49,0.00027397,3]
[368472442,1751188247425,-490.0,0.00027397,3]
[368472443,1751188247436,-1003.08,0.00027397,3]
[368472444,1751188247445,-490.0,0.00027397,3]
[368472445,1751188247456,-490.00000003,0.00027397,3]
[368472446,1751188247465,-490.0,0.00027397,3]
[368472447,1751188247475,-1410.16,0.00027397,3]
[368472448,1751188247484,-490.0,0.00027397,3]
[368472449,1751188247493,-490.0,0.00027397,3]
[368472450,1751188247503,-490.0,0.00027397,3]
[368472451,1751188247512,-490.0,0.00027397,3]
[368472452,1751188247522,-2197.94,0.00027397,3]
[368472453,1751188247532,-490.0,0.00027397,3]
[368472454,1751188247542,-490.0,0.00027397,3]
[368472455,1751188247551,-382.98736207,0.00027397,3]
[368472456,1751188247561,-2234.92,0.00027397,3]
[368472457,1751188247571,-2424.49,0.00027397,3]
[368472458,1751188247580,-490.0,0.00027397,3]
[368472459,1751188247590,-490.0,0.00027397,3]
[368472460,1751188247599,-1005.17,0.00027397,3]
[368472461,1751188247609,-919.22167638,0.00027397,3]
[368472462,1751188248243,-600.75,0.00027397,3]
[368472463,1751188293101,150.0,0.00022,2]
[368472464,1751188423856,1332.97332753,0.000273,120]
[368472466,1751188683750,-182.36855939,0.00024353,2]
[368472467,1751189123780,250.0,0.00015,2]
[368472468,1751189220814,-199.12643792,0.00024,5]
[368472469,1751189222435,-220.24644134,0.00024,5]
[368472470,1751189227113,-162.16,0.00024,5]
[368472471,1751189232468,218.35053669,0.0002739,120]
[368472472,1751189232621,-180.25,0.00024,5]
[368472473,1751189234582,219.0,0.0002739,120]
[368472474,1751189234769,-235.87695789,0.00024,5]
[368472475,1751189238109,-547.43571685,0.00024,5]
[368472477,1751189277859,435.68035882,0.0002,4]
[368472489,1751189431583,-194.60193523,0.00024353,2]
[368472490,1751189431594,-161.0,0.00025,4]
[368472491,1751189431604,-200.0,0.00025397,2]
[368472492,1751189431614,-500.0,0.00025478,7]
[368472493,1751189431623,-215.39806477,0.00025478,7]
[368472494,1751189431643,-584.60193523,0.00025478,7]
[368472495,1751189431653,-150.0,0.00025896,2]
[368472496,1751189431662,-37.71256637,0.00025985,2]
[368472497,1751189431674,-127.42743363,0.00025985,2]
[368472498,1751189431684,-300.0,0.00025999,2]
[368472499,1751189431693,-124.07456637,0.00025999,2]
[368472500,1751189431713,-304.51499059,0.00025999,2]
[368472501,1751189431751,-507.47661553,0.00025999,2]
[368472502,1751189431767,-263.93382751,0.00025999,2]
[368472503,1751189431777,-1159.56965561,0.00026,10]
[368472504,1751189431789,-1902.31129992,0.00026,10]
[368472505,1751189431800,-617.00096497,0.00026,10]
[368472506,1751189431812,-2141.88787415,0.00026,10]
[368472507,1751189431912,-291.033,0.00026,10]
[368472508,1751189431927,-7647.17720535,0.00026,10]
[368472509,1751189431939,-664.67,0.00026117,2]
[368472510,1751189431949,-1000.0,0.00026144,2]
[368472511,1751189431959,-250.0,0.00026172,2]
[368472512,1751189431969,-207.59,0.00026193,2]
[368472513,1751189431978,-300.0,0.00026296,2]
[368472515,1751189431989,-172.9,0.00026297,2]
[368472517,1751189431999,-300.0,0.00026297,2]
[368472519,1751189432009,-300.0,0.00026297,2]
[368472521,1751189432019,-207.4,0.00026298,2]
[368472523,1751189432029,-2250.47055532,0.00026298,2]
[368472526,1751189432049,-658.9374661,0.00026298,2]
[368472528,1751189432059,-300.0,0.00026298,2]
[368472531,1751189432069,-151.0,0.00026298,2]
[368472534,1751189432079,-500.0,0.00026298,2]
[368472538,1751189432089,-500.0,0.00026298,2]
[368472541,1751189432100,-2000.0,0.00026298,2]
[368472544,1751189432110,-500.0,0.00026298,2]
[368472546,1751189432121,-1000.0,0.00026298,2]
[368472548,1751189432130,-178.42522448,0.00026298,2]
[368472550,1751189432140,-500.0,0.000263,7]
[368472552,1751189432150,-800.0,0.000263,7]
[368472554,1751189432161,-12728.9,0.00026314,2]
[368472556,1751189432171,-4889.29,0.00026365,2]
[368472559,1751189432181,-500.0,0.0002642,2]
[368472561,1751189432190,-500.0,0.00026574,7]
[368472563,1751189432200,-1065.00083879,0.000267,9]
[368472566,1751189432211,-255.93478659,0.000267,9]
[368472568,1751189432228,-79.06437462,0.000267,9]
[368472570,1751189432238,-486.25926352,0.000268,9]
[368472573,1751189432250,-1387.14679198,0.000268,9]
[368472575,1751189432261,-779.31317074,0.000268,9]
[368472578,1751189432286,-331.99,0.00025925,2]
[368472580,1751189432296,-247.28077376,0.000268,9]
[368472582,1751189432306,-185.02695779,0.00026846,2]
[368472584,1751189432316,-693.33436195,0.000269,9]
[368472587,1751189432327,-896.40929933,0.000269,9]
[368472589,1751189432338,-850.17181744,0.000269,9]
[368472591,1751189432349,-1816.51140536,0.000269,9]
[368472593,1751189432360,-143.57311592,0.000269,9]
[368472595,1751189432370,-312.23974949,0.000269,16]
[368472597,1751189432379,-46.18713459,0.0002695,3]
[368472617,1751189437582,-617.68656071,0.0002695,3]
[368472618,1751189437592,-1000.0,0.0002695,3]
[368472619,1751189437602,-293.3188722,0.0002698,3]
[368472620,1751189437611,-464.7105044,0.00027,3]
[368472621,1751189437624,-1035.2894956,0.00027,3]
[368472622,1751189437634,-13492.90747943,0.00027,2]
[368472623,1751189437645,-4106.06180314,0.00027,2]
[368472624,1751189437654,-312.2397492,0.00027072,16]
[368472625,1751189437663,-3391.83,0.00027097,2]
[368472626,1751189437673,-545.33019866,0.000271,3]
[368472627,1751189437685,-954.66980134,0.000271,3]
[368472628,1751189437694,-153.739976,0.00027106,8]
[368472629,1751189437703,-2590.59721,0.0002712,2]
[368472630,1751189437712,-800.0,0.00027122,7]
[368472631,1751189437721,-666.78862298,0.0002713,2]
[368472632,1751189437730,-107.22184182,0.00027245,16]
[368472633,1751189437750,-205.01790738,0.00027245,16]
[368472634,1751189437759,-300.0,0.00027274,2]
[368472635,1751189437769,-366.76957887,0.00027287,2]
[368472636,1751189437795,-633.23042113,0.00027287,2]
[368472637,1751189437805,-434.3812,0.00027287,2]
[368472638,1751189437814,-2638.51549411,0.0002729,2]
[368472639,1751189437823,-835.62347362,0.00027296,2]
[368472640,1751189437833,-5000.0,0.00027297,2]
[368472641,1751189437843,-156.41229016,0.00027297,2]
[368472642,1751189437852,-531.97236251,0.00027297,2]
[368472643,1751189437865,-202.95260644,0.00027297,2]
[368472644,1751189437875,-157.86509501,0.00027297,2]
[368472645,1751189437884,-170.83487489,0.00027297,2]
[368472646,1751189437894,-1968.22655243,0.00027297,2]
[368472647,1751189437904,-2110.0,0.00027335,2]
[368472648,1751189437913,-2638.51549405,0.00027352,2]
[368472649,1751189437923,-1968.22655237,0.00027358,2]
[368472650,1751189437932,-1695.9,0.0002737,2]
[368472651,1751189437942,-3391.8,0.00027371,2]
[368472652,1751189437951,-500.0,0.00027373,2]
[368472653,1751189437961,-497.6364936,0.00027373,2]
[368472654,1751189437970,-500.0,0.00027373,2]
[368472655,1751189437980,-500.0,0.00027373,2]
[368472656,1751189437989,-500.0,0.00027373,2]
[368472658,1751189437998,-500.0,0.00027373,2]
[368472659,1751189438007,-21270.8217294,0.00027387,2]
[368472660,1751189438016,-804.28541859,0.00027387,2]
[368472661,1751189438026,-63812.4651882,0.00027387,2]
[368472662,1751189438035,-151.86,0.00027387,2]
[368472663,1751189438044,-4017.10292976,0.0002739,2]
[368472664,1751189438054,-3961.44505393,0.0002739,2]
[368472665,1751189438063,-158.48013218,0.0002739,2]
[368472667,1751189438072,-191.87295522,0.00027394,2]
[368472669,1751189438081,-500.0,0.00027396,2]
[368472671,1751189438090,-353.36725536,0.00027396,2]
[368472673,1751189438099,-500.0,0.00027396,2]
[368472675,1751189438108,-500.0,0.00027396,2]
[368472677,1751189438117,-376.57149043,0.00027396,2]
[368472679,1751189438127,-500.0,0.00027396,2]
[368472681,1751189438136,-500.0,0.00027396,2]
[368472683,1751189438145,-500.0,0.00027396,2]
[368472685,1751189438154,-500.0,0.00027396,2]
[368472687,1751189438163,-500.0,0.00027396,2]
[368472689,1751189438172,-500.0,0.00027396,2]
[368472691,1751189438181,-500.0,0.00027396,2]
[368472693,1751189438190,-500.0,0.00027396,2]
[368472695,1751189438199,-500.0,0.00027396,2]
[368472696,1751189438208,-500.0,0.00027396,2]
[368472698,1751189438217,-500.0,0.00027396,2]
[368472700,1751189438226,-500.0,0.00027396,2]
[368472702,1751189438235,-500.0,0.00027396,2]
[368472704,1751189438244,-500.0,0.00027396,2]
[368472706,1751189438253,-500.0,0.00027396,2]
[368472708,1751189438262,-509.66971382,0.00027396,2]
[368472710,1751189438271,-500.0,0.00027396,2]
[368472712,1751189438281,-500.0,0.00027396,2]
[368472714,1751189438291,-366.78349259,0.00027396,2]
[368472716,1751189438300,-500.0,0.00027396,2]
[368472718,1751189438310,-500.0,0.00027396,2]
[368472720,1751189438319,-500.0,0.00027396,2]
[368472722,1751189438328,-500.0,0.00027396,2]
[368472724,1751189438337,-451.21973131,0.00027396,2]
[368472726,1751189438345,-852.0,0.00027397,2]